[Event "*** Titled Tuesday Blitz"]
[Site "Chess.com"]
[Date "2021.02.09"]
[Round "4"]
[White "Anna_ChessMate"]
[Black "Anton_Demchenko"]
[Result "1-0"]
[WhiteElo "2565"]
[BlackElo "2844"]
[TimeControl "180+1"]
[EndTime "10:41:06 PST"]
[Termination "Anna_ChessMate won by resignation"]

1. d4 {[%clk 0:03:00.2]} 1... Nf6 {[%clk 0:02:59.6]} 2. c4 {[%clk 0:03:00.1]}
2... d6 {[%clk 0:02:55.8]} 3. Nc3 {[%clk 0:02:57.2]} 3... e5 {[%clk 0:02:56]} 4.
e3 {[%clk 0:02:53.8]} 4... Nbd7 {[%clk 0:02:52.9]} 5. Bd3 {[%clk 0:02:52.8]}
5... g6 {[%clk 0:02:53.2]} 6. Nge2 {[%clk 0:02:53.3]} 6... Bg7 {[%clk
0:02:53.1]} 7. O-O {[%clk 0:02:54]} 7... O-O {[%clk 0:02:53.1]} 8. b3 {[%clk
0:02:54.6]} 8... Re8 {[%clk 0:02:51.3]} 9. Bb2 {[%clk 0:02:53.9]} 9... c6 {[%clk
0:02:50.9]} 10. Rc1 {[%clk 0:02:52.9]} 10... e4 {[%clk 0:02:47.1]} 11. Bb1
{[%clk 0:02:52.6]} 11... d5 {[%clk 0:02:47.7]} 12. b4 {[%clk 0:02:38.4]} 12...
a6 {[%clk 0:02:45.7]} 13. a4 {[%clk 0:02:36.8]} 13... Nb6 {[%clk 0:02:05]} 14.
c5 {[%clk 0:02:20.3]} 14... Nbd7 {[%clk 0:02:04.5]} 15. b5 {[%clk 0:02:19.1]}
15... Nf8 {[%clk 0:02:00.9]} 16. bxc6 {[%clk 0:02:06.6]} 16... bxc6 {[%clk
0:02:01.8]} 17. a5 {[%clk 0:01:41.4]} 17... Bf5 {[%clk 0:01:57.3]} 18. Na4
{[%clk 0:01:40.5]} 18... h5 {[%clk 0:01:56.7]} 19. Nb6 {[%clk 0:01:39.3]} 19...
Ra7 {[%clk 0:01:57.2]} 20. Bc2 {[%clk 0:01:31.5]} 20... h4 {[%clk 0:01:49.3]}
21. Ba4 {[%clk 0:01:31.5]} 21... Qc7 {[%clk 0:01:49.8]} 22. Nf4 {[%clk
0:01:11.3]} 22... Re7 {[%clk 0:01:32.5]} 23. h3 {[%clk 0:01:07.3]} 23... Bh6
{[%clk 0:01:28.7]} 24. Ne2 {[%clk 0:00:31.9]} 24... N8h7 {[%clk 0:01:27.4]} 25.
Rb1 {[%clk 0:00:23.4]} 25... Ng5 {[%clk 0:01:24.9]} 26. Nf4 {[%clk 0:00:23.2]}
26... Ngh7 {[%clk 0:01:16]} 27. Ne2 {[%clk 0:00:22.4]} 27... Kg7 {[%clk
0:01:16.5]} 28. Bc3 {[%clk 0:00:20.7]} 28... g5 {[%clk 0:01:01.1]} 29. Bd2
{[%clk 0:00:15.8]} 29... g4 {[%clk 0:01:00.5]} 30. Nf4 {[%clk 0:00:16.3]} 30...
Bxf4 {[%clk 0:00:56]} 31. exf4 {[%clk 0:00:17.2]} 31... gxh3 {[%clk 0:00:56.4]}
32. Be3 {[%clk 0:00:16.2]} 32... Re8 {[%clk 0:00:52.3]} 33. gxh3 {[%clk
0:00:13.5]} 33... Bxh3 {[%clk 0:00:49.6]} 34. Kh2 {[%clk 0:00:13.9]} 34... Bxf1
{[%clk 0:00:49.3]} 35. Qxf1 {[%clk 0:00:14.8]} 35... Kh8 {[%clk 0:00:23.6]} 36.
Qh3 {[%clk 0:00:14.7]} 36... Rg8 {[%clk 0:00:24]} 37. Rg1 {[%clk 0:00:15.2]}
37... Rxg1 {[%clk 0:00:16.4]} 38. Kxg1 {[%clk 0:00:16.1]} 38... Rb7 {[%clk
0:00:17.2]} 39. Qxh4 {[%clk 0:00:15.2]} 39... Rb8 {[%clk 0:00:17.6]} 40. Kf1
{[%clk 0:00:14.2]} 40... Rg8 {[%clk 0:00:15.8]} 41. Qh3 {[%clk 0:00:14.6]} 41...
Ng4 {[%clk 0:00:12.9]} 42. Qh5 {[%clk 0:00:14.3]} 42... Nf6 {[%clk 0:00:05.9]}
43. Qf5 {[%clk 0:00:13.3]} 43... Qb7 {[%clk 0:00:05.5]} 44. Qe5 {[%clk
0:00:12.7]} 44... Re8 {[%clk 0:00:04.1]} 45. Qf5 {[%clk 0:00:09.9]} 45... Kg7
{[%clk 0:00:03.4]} 46. Ke2 {[%clk 0:00:10]} 46... Qc7 {[%clk 0:00:03.9]} 47. Qh3
{[%clk 0:00:07.8]} 47... Re6 {[%clk 0:00:04.1]} 48. Qf5 {[%clk 0:00:05.6]} 48...
Re7 {[%clk 0:00:03.5]} 49. Qh3 {[%clk 0:00:05.4]} 49... Re8 {[%clk 0:00:04.1]}
50. Qg3+ {[%clk 0:00:05.5]} 50... Kh8 {[%clk 0:00:04.1]} 51. Qh4 {[%clk
0:00:06.1]} 51... Rg8 {[%clk 0:00:04.8]} 52. Qh3 {[%clk 0:00:06.6]} 52... Re8
{[%clk 0:00:04.7]} 53. Qf5 {[%clk 0:00:06.9]} 53... Re6 {[%clk 0:00:04.9]} 54.
Qh3 {[%clk 0:00:06.6]} 54... Qd8 {[%clk 0:00:05.1]} 55. f5 {[%clk 0:00:06.1]}
55... Re7 {[%clk 0:00:04.7]} 56. Bxc6 {[%clk 0:00:06.5]} 56... Qc7 {[%clk
0:00:05]} 57. Ba4 {[%clk 0:00:05.7]} 57... Kg7 {[%clk 0:00:03.8]} 58. Qg2+
{[%clk 0:00:05.5]} 58... Kh8 {[%clk 0:00:03.7]} 59. Qh3 {[%clk 0:00:06]} 59...
Qd8 {[%clk 0:00:04.1]} 60. Qh4 {[%clk 0:00:06.1]} 60... Rc7 {[%clk 0:00:03.4]}
61. Bf4 {[%clk 0:00:05.5]} 61... Re7 {[%clk 0:00:03.5]} 62. Be5 {[%clk
0:00:05.1]} 62... Kg7 {[%clk 0:00:04.4]} 63. Qg3+ {[%clk 0:00:04.2]} 63... Kh8
{[%clk 0:00:03.4]} 64. c6 {[%clk 0:00:04.8]} 64... Qe8 {[%clk 0:00:01.6]} 65. c7
{[%clk 0:00:04.2]} 65... Qf8 {[%clk 0:00:01.2]} 66. c8=Q {[%clk 0:00:04.1]}
66... Qxc8 {[%clk 0:00:02.1]} 67. Nxc8 {[%clk 0:00:04.9]} 67... Re8 {[%clk
0:00:02.7]} 68. Bxe8 {[%clk 0:00:03]} 1-0

[Event "*** Titled Tuesday Blitz"]
[Site "Chess.com"]
[Date "2021.02.09"]
[Round "4"]
[White "SanchezKelvin"]
[Black "night_player"]
[Result "1-0"]
[WhiteElo "2453"]
[BlackElo "2257"]
[TimeControl "180+1"]
[EndTime "10:41:06 PST"]
[Termination "SanchezKelvin won by resignation"]

1. e4 {[%clk 0:03:00.9]} 1... c5 {[%clk 0:03:00.4]} 2. Nf3 {[%clk 0:02:59.5]}
2... Nc6 {[%clk 0:03:00.9]} 3. d4 {[%clk 0:02:59.6]} 3... cxd4 {[%clk
0:03:01.8]} 4. Nxd4 {[%clk 0:03:00.2]} 4... e5 {[%clk 0:03:02.3]} 5. Nb5 {[%clk
0:02:55.9]} 5... d6 {[%clk 0:03:02.5]} 6. N1c3 {[%clk 0:02:55.6]} 6... a6 {[%clk
0:03:03.1]} 7. Na3 {[%clk 0:02:55.4]} 7... b5 {[%clk 0:03:04]} 8. Nd5 {[%clk
0:02:55.7]} 8... Nce7 {[%clk 0:03:04.9]} 9. c4 {[%clk 0:02:41.5]} 9... Nxd5
{[%clk 0:03:04.4]} 10. cxd5 {[%clk 0:02:40.7]} 10... Be7 {[%clk 0:03:03.6]} 11.
Bd3 {[%clk 0:02:39.8]} 11... Bg5 {[%clk 0:03:03.6]} 12. O-O {[%clk 0:02:39.1]}
12... Bxc1 {[%clk 0:03:03.2]} 13. Rxc1 {[%clk 0:02:38.8]} 13... Ne7 {[%clk
0:03:04.1]} 14. Nc2 {[%clk 0:02:38.3]} 14... O-O {[%clk 0:03:04.4]} 15. Ne3
{[%clk 0:02:34.9]} 15... f5 {[%clk 0:03:04.5]} 16. exf5 {[%clk 0:02:31.8]} 16...
Nxf5 {[%clk 0:03:03.7]} 17. Nxf5 {[%clk 0:02:31.2]} 17... Bxf5 {[%clk
0:03:04.6]} 18. Bxf5 {[%clk 0:02:31.5]} 18... Rxf5 {[%clk 0:03:05.5]} 19. Rc6
{[%clk 0:02:31.1]} 19... Qf6 {[%clk 0:02:44.6]} 20. Qc2 {[%clk 0:02:22.2]} 20...
Rf8 {[%clk 0:02:34.2]} 21. Rc8 {[%clk 0:02:10]} 21... Rg5 {[%clk 0:02:13]} 22.
Rxf8+ {[%clk 0:02:04.5]} 22... Qxf8 {[%clk 0:02:10.6]} 23. Rc1 {[%clk
0:02:01.4]} 23... e4 {[%clk 0:01:40.3]} 24. Qxe4 {[%clk 0:01:53.4]} 24... Re5
{[%clk 0:01:39.6]} 25. Qg4 {[%clk 0:01:43.2]} 25... Qe7 {[%clk 0:01:20.3]} 26.
Rc8+ {[%clk 0:01:22.7]} 26... Kf7 {[%clk 0:01:18]} 27. Qf4+ {[%clk 0:01:14.6]}
27... Kg6 {[%clk 0:01:15.1]} 28. h4 {[%clk 0:01:07.6]} 28... Rxd5 {[%clk
0:01:07.4]} 29. Qg4+ {[%clk 0:00:59.3]} 29... Kf6 {[%clk 0:01:03.4]} 30. Rc3
{[%clk 0:00:56.5]} 30... Rf5 {[%clk 0:00:53.9]} 31. Re3 {[%clk 0:00:47.9]} 31...
Qa7 {[%clk 0:00:39.9]} 32. Qg3 {[%clk 0:00:41.7]} 32... Qc5 {[%clk 0:00:38.6]}
33. Rc3 {[%clk 0:00:33.8]} 33... Qe5 {[%clk 0:00:36.7]} 34. Qxe5+ {[%clk
0:00:32.9]} 34... Kxe5 {[%clk 0:00:37.6]} 35. Rc6 {[%clk 0:00:31.3]} 35... a5
{[%clk 0:00:37.6]} 36. Kf1 {[%clk 0:00:27.5]} 36... Kd5 {[%clk 0:00:26.2]} 37.
Rc7 {[%clk 0:00:27.2]} 37... Rh5 {[%clk 0:00:17.9]} 38. g3 {[%clk 0:00:26.3]}
38... g6 {[%clk 0:00:16.7]} 39. Ke2 {[%clk 0:00:24.4]} 39... a4 {[%clk
0:00:16.3]} 40. a3 {[%clk 0:00:24.1]} 40... Re5+ {[%clk 0:00:15.7]} 41. Kd2
{[%clk 0:00:22.4]} 41... h5 {[%clk 0:00:16.6]} 42. Rg7 {[%clk 0:00:20.1]} 42...
Re6 {[%clk 0:00:16.4]} 43. Kd3 {[%clk 0:00:19.9]} 43... Ke5 {[%clk 0:00:15.3]}
44. Rb7 {[%clk 0:00:18.2]} 44... Rf6 {[%clk 0:00:15.8]} 45. Rxb5+ {[%clk
0:00:17.7]} 45... d5 {[%clk 0:00:14.3]} 46. f4+ {[%clk 0:00:16.5]} 46... Kf5
{[%clk 0:00:14.6]} 47. Rxd5+ {[%clk 0:00:16]} 47... Kg4 {[%clk 0:00:15.5]} 48.
Rg5+ {[%clk 0:00:16]} 48... Kf3 {[%clk 0:00:16.4]} 49. Kc3 {[%clk 0:00:16.1]}
49... Rb6 {[%clk 0:00:15.5]} 50. Kc2 {[%clk 0:00:15.7]} 50... Kf2 {[%clk
0:00:14.5]} 51. g4 {[%clk 0:00:14.8]} 51... hxg4 {[%clk 0:00:15]} 52. Rxg4
{[%clk 0:00:14.4]} 52... Kf3 {[%clk 0:00:15.9]} 53. Rg5 {[%clk 0:00:13.7]} 53...
Kxf4 {[%clk 0:00:16.5]} 54. Ra5 {[%clk 0:00:13.9]} 54... Rc6+ {[%clk 0:00:13.8]}
55. Kd3 {[%clk 0:00:13.3]} 55... Rd6+ {[%clk 0:00:14.1]} 56. Ke2 {[%clk
0:00:12.9]} 56... Rd4 {[%clk 0:00:14.1]} 57. h5 {[%clk 0:00:11.2]} 57... g5
{[%clk 0:00:13.8]} 58. h6 {[%clk 0:00:11.1]} 58... g4 {[%clk 0:00:14.1]} 59. h7
{[%clk 0:00:08.3]} 59... Rd8 {[%clk 0:00:14.4]} 60. Rxa4+ {[%clk 0:00:08.4]}
60... Kg3 {[%clk 0:00:14.5]} 61. Kf1 {[%clk 0:00:08.3]} 61... Rf8+ {[%clk
0:00:12.9]} 62. Kg1 {[%clk 0:00:08.3]} 62... Rd8 {[%clk 0:00:13.4]} 63. Kf1
{[%clk 0:00:08.7]} 63... Rf8+ {[%clk 0:00:13.4]} 64. Ke2 {[%clk 0:00:09.1]}
64... Re8+ {[%clk 0:00:13.5]} 65. Kd3 {[%clk 0:00:09.3]} 65... Kh3 {[%clk
0:00:13.3]} 66. Re4 {[%clk 0:00:08.3]} 66... Rd8+ {[%clk 0:00:12.7]} 67. Rd4
{[%clk 0:00:08.1]} 67... Rh8 {[%clk 0:00:12.9]} 68. Rd7 {[%clk 0:00:07.4]} 68...
g3 {[%clk 0:00:13.1]} 69. Ke3 {[%clk 0:00:06.2]} 69... g2 {[%clk 0:00:12.7]} 70.
Rg7 {[%clk 0:00:03.8]} 70... Kh2 {[%clk 0:00:12.2]} 71. Kf2 {[%clk 0:00:04.2]}
71... Rf8+ {[%clk 0:00:11.7]} 72. Ke2 {[%clk 0:00:04.6]} 72... g1=Q {[%clk
0:00:11.8]} 73. Rxg1 {[%clk 0:00:05.1]} 73... Kxg1 {[%clk 0:00:12.6]} 74. b4
{[%clk 0:00:05.5]} 74... Rf7 {[%clk 0:00:13.1]} 75. h8=Q {[%clk 0:00:04.9]}
75... Rf8 {[%clk 0:00:14]} 76. Qd4+ {[%clk 0:00:05.1]} 76... Kg2 {[%clk
0:00:13.6]} 77. Qe3 {[%clk 0:00:06]} 1-0

[Event "*** Titled Tuesday Blitz"]
[Site "Chess.com"]
[Date "2021.02.09"]
[Round "4"]
[White "Srisshhhtea"]
[Black "Murad_Ibrahimli"]
[Result "0-1"]
[WhiteElo "2505"]
[BlackElo "2716"]
[TimeControl "180+1"]
[EndTime "10:41:08 PST"]
[Termination "Murad_Ibrahimli won on time"]

1. d4 {[%clk 0:03:00.9]} 1... g6 {[%clk 0:02:59.3]} 2. e4 {[%clk 0:02:59.9]}
2... Bg7 {[%clk 0:02:58.5]} 3. Nf3 {[%clk 0:02:58.6]} 3... d6 {[%clk 0:02:58.1]}
4. Bc4 {[%clk 0:02:56.5]} 4... Nf6 {[%clk 0:02:57.8]} 5. Qe2 {[%clk 0:02:55.7]}
5... c6 {[%clk 0:02:58.2]} 6. O-O {[%clk 0:02:50.8]} 6... d5 {[%clk 0:02:54.1]}
7. exd5 {[%clk 0:02:49.3]} 7... cxd5 {[%clk 0:02:55]} 8. Bb5+ {[%clk 0:02:44.5]}
8... Bd7 {[%clk 0:02:53.9]} 9. Re1 {[%clk 0:02:37.5]} 9... Bxb5 {[%clk 0:02:50]}
10. Qxb5+ {[%clk 0:02:37.4]} 10... Qd7 {[%clk 0:02:49.6]} 11. Qe2 {[%clk
0:02:32.1]} 11... Nc6 {[%clk 0:02:40.9]} 12. c3 {[%clk 0:02:28]} 12... O-O
{[%clk 0:02:39.9]} 13. Nbd2 {[%clk 0:02:17.7]} 13... Rfe8 {[%clk 0:02:37.9]} 14.
Nb3 {[%clk 0:02:12.8]} 14... b6 {[%clk 0:02:36.4]} 15. Bf4 {[%clk 0:02:10.6]}
15... Ne4 {[%clk 0:02:35.9]} 16. Rad1 {[%clk 0:02:04.7]} 16... e6 {[%clk
0:02:34.8]} 17. Nc1 {[%clk 0:01:52.7]} 17... f6 {[%clk 0:02:24]} 18. Nd3 {[%clk
0:01:51.5]} 18... g5 {[%clk 0:02:23.7]} 19. Bc1 {[%clk 0:01:48.6]} 19... Rad8
{[%clk 0:02:15.6]} 20. Nd2 {[%clk 0:01:46.1]} 20... Nd6 {[%clk 0:02:11.1]} 21.
Nf1 {[%clk 0:01:43.8]} 21... Nf5 {[%clk 0:02:02.6]} 22. Qh5 {[%clk 0:01:23.5]}
22... Qf7 {[%clk 0:01:59.5]} 23. Qe2 {[%clk 0:01:15.2]} 23... h5 {[%clk
0:01:52.6]} 24. Ng3 {[%clk 0:01:11.3]} 24... Nxg3 {[%clk 0:01:23.3]} 25. hxg3
{[%clk 0:01:12.2]} 25... Qg6 {[%clk 0:01:21.4]} 26. g4 {[%clk 0:01:05.9]} 26...
hxg4 {[%clk 0:01:15.3]} 27. Qxg4 {[%clk 0:01:04.3]} 27... Qf5 {[%clk 0:01:15.9]}
28. Qh5 {[%clk 0:00:59.4]} 28... Qh7 {[%clk 0:00:48.1]} 29. Qg4 {[%clk
0:00:57.4]} 29... Kf7 {[%clk 0:00:45.8]} 30. Re3 {[%clk 0:00:55.8]} 30... Qf5
{[%clk 0:00:40.1]} 31. Qh5+ {[%clk 0:00:51.1]} 31... Qg6 {[%clk 0:00:40.5]} 32.
Qe2 {[%clk 0:00:47.6]} 32... Re7 {[%clk 0:00:34.1]} 33. Re1 {[%clk 0:00:46.1]}
33... Rde8 {[%clk 0:00:34.5]} 34. f4 {[%clk 0:00:45.7]} 34... g4 {[%clk
0:00:31.4]} 35. Rg3 {[%clk 0:00:40.4]} 35... f5 {[%clk 0:00:31.2]} 36. b4 {[%clk
0:00:33.4]} 36... Rh8 {[%clk 0:00:29.2]} 37. b5 {[%clk 0:00:29]} 37... Na5
{[%clk 0:00:29.3]} 38. Ba3 {[%clk 0:00:27.7]} 38... Rd7 {[%clk 0:00:24.9]} 39.
Re3 {[%clk 0:00:19.8]} 39... Re8 {[%clk 0:00:22.6]} 40. Bb4 {[%clk 0:00:17.1]}
40... Nc4 {[%clk 0:00:22.8]} 41. a4 {[%clk 0:00:16.6]} 41... Nxe3 {[%clk
0:00:22]} 42. Qxe3 {[%clk 0:00:16.4]} 42... Rh8 {[%clk 0:00:21.9]} 43. Kf2
{[%clk 0:00:15.9]} 43... Bf6 {[%clk 0:00:18.7]} 44. Qxe6+ {[%clk 0:00:16]} 44...
Kg7 {[%clk 0:00:16.3]} 45. Qxd7+ {[%clk 0:00:16.3]} 45... Qf7 {[%clk 0:00:16.9]}
46. Qxf7+ {[%clk 0:00:16.2]} 46... Kxf7 {[%clk 0:00:17.8]} 47. Ne5+ {[%clk
0:00:16.2]} 47... Kg7 {[%clk 0:00:18.4]} 48. Nc6 {[%clk 0:00:14.5]} 48... Bh4+
{[%clk 0:00:17.7]} 49. g3 {[%clk 0:00:15.1]} 49... Bf6 {[%clk 0:00:18.6]} 50.
Kg2 {[%clk 0:00:15.7]} 50... Kf7 {[%clk 0:00:16.9]} 51. Be7 {[%clk 0:00:15.9]}
51... Re8 {[%clk 0:00:15.3]} 52. Rh1 {[%clk 0:00:09.2]} 52... Bxe7 {[%clk
0:00:14.5]} 53. Rh7+ {[%clk 0:00:09.7]} 53... Kf6 {[%clk 0:00:15.1]} 54. Nxa7
{[%clk 0:00:06.7]} 54... Ba3 {[%clk 0:00:13.9]} 55. Rh6+ {[%clk 0:00:04.2]}
55... Kg7 {[%clk 0:00:13.9]} 56. Rxb6 {[%clk 0:00:04.5]} 56... Re2+ {[%clk
0:00:14.5]} 57. Kf1 {[%clk 0:00:04.9]} 57... Re3 {[%clk 0:00:15.1]} 58. Rb7+
{[%clk 0:00:05.3]} 58... Kf6 {[%clk 0:00:14.9]} 59. Rc7 {[%clk 0:00:05.9]} 59...
Rxg3 {[%clk 0:00:14.4]} 60. b6 {[%clk 0:00:05.5]} 60... Bd6 {[%clk 0:00:11.4]}
61. Nb5 {[%clk 0:00:04.6]} 61... Bxf4 {[%clk 0:00:09.5]} 62. b7 {[%clk 0:00:04]}
62... Rf3+ {[%clk 0:00:09.7]} 63. Kg2 {[%clk 0:00:03.7]} 63... Rg3+ {[%clk
0:00:09.9]} 64. Kf1 {[%clk 0:00:03.1]} 64... Rf3+ {[%clk 0:00:10.3]} 65. Ke2
{[%clk 0:00:03.7]} 65... Re3+ {[%clk 0:00:10.4]} 66. Kd1 {[%clk 0:00:03.5]}
66... Re8 {[%clk 0:00:06.4]} 67. Rc8 {[%clk 0:00:02.3]} 67... Kf7 {[%clk
0:00:06.9]} 68. Rxe8 {[%clk 0:00:02.1]} 68... Kxe8 {[%clk 0:00:07.4]} 69. a5
{[%clk 0:00:02.7]} 69... Kd7 {[%clk 0:00:07.5]} 70. a6 {[%clk 0:00:03.1]} 70...
Kc6 {[%clk 0:00:05.7]} 0-1

[Event "*** Titled Tuesday Blitz"]
[Site "Chess.com"]
[Date "2021.02.09"]
[Round "4"]
[White "wonderfultime"]
[Black "sara_khm"]
[Result "1-0"]
[WhiteElo "2927"]
[BlackElo "2698"]
[TimeControl "180+1"]
[EndTime "10:41:12 PST"]
[Termination "wonderfultime won by resignation"]

1. d4 {[%clk 0:03:00.9]} 1... Nf6 {[%clk 0:02:59.5]} 2. Nf3 {[%clk 0:03:01.2]}
2... d5 {[%clk 0:02:59.5]} 3. Bf4 {[%clk 0:03:01.4]} 3... c5 {[%clk 0:02:59.3]}
4. c3 {[%clk 0:03:01.7]} 4... Nc6 {[%clk 0:02:51.3]} 5. e3 {[%clk 0:03:01.5]}
5... cxd4 {[%clk 0:02:46.2]} 6. exd4 {[%clk 0:03:01.5]} 6... Bf5 {[%clk
0:02:42.9]} 7. Qb3 {[%clk 0:02:58.3]} 7... Qc8 {[%clk 0:02:41.2]} 8. Be2 {[%clk
0:02:58.8]} 8... e6 {[%clk 0:02:40]} 9. O-O {[%clk 0:02:59.2]} 9... h6 {[%clk
0:02:38.4]} 10. Nbd2 {[%clk 0:02:59.5]} 10... Be7 {[%clk 0:02:38.3]} 11. Rfe1
{[%clk 0:02:59.9]} 11... O-O {[%clk 0:02:38.3]} 12. Nf1 {[%clk 0:02:59.7]} 12...
a6 {[%clk 0:02:37.9]} 13. Ng3 {[%clk 0:02:58]} 13... Bh7 {[%clk 0:02:36.6]} 14.
Qd1 {[%clk 0:02:54]} 14... b5 {[%clk 0:02:35.7]} 15. Bd3 {[%clk 0:02:53.1]}
15... Bxd3 {[%clk 0:02:33.7]} 16. Qxd3 {[%clk 0:02:54]} 16... Qb7 {[%clk
0:02:31.5]} 17. h3 {[%clk 0:02:42.3]} 17... a5 {[%clk 0:02:28.1]} 18. Qd2 {[%clk
0:02:36.3]} 18... Kh7 {[%clk 0:02:14.3]} 19. Ne5 {[%clk 0:01:57.7]} 19... Nxe5
{[%clk 0:02:13.8]} 20. Bxe5 {[%clk 0:01:58.6]} 20... Nd7 {[%clk 0:02:08.7]} 21.
Bf4 {[%clk 0:01:58]} 21... Rfc8 {[%clk 0:02:05.7]} 22. Re3 {[%clk 0:01:46]}
22... b4 {[%clk 0:02:00.6]} 23. Rae1 {[%clk 0:01:38.6]} 23... bxc3 {[%clk
0:01:59.9]} 24. bxc3 {[%clk 0:01:39.5]} 24... Nf6 {[%clk 0:01:55]} 25. Qd3+
{[%clk 0:01:35.4]} 25... Kg8 {[%clk 0:01:53.4]} 26. Nf5 {[%clk 0:01:35.5]} 26...
exf5 {[%clk 0:01:23.7]} 27. Rxe7 {[%clk 0:01:35.7]} 27... Qa6 {[%clk 0:01:23.8]}
28. Qxf5 {[%clk 0:01:31.4]} 28... Rxc3 {[%clk 0:01:23.8]} 29. Be5 {[%clk
0:01:27.4]} 29... Rf8 {[%clk 0:01:12.4]} 30. Rb1 {[%clk 0:00:50.1]} 30... Ra3
{[%clk 0:00:49.8]} 31. Qc2 {[%clk 0:00:29.6]} 31... Ne4 {[%clk 0:00:46.3]} 32.
Rbb7 {[%clk 0:00:20.1]} 32... Rc3 {[%clk 0:00:40.5]} 33. Qd1 {[%clk 0:00:19.6]}
33... Qc6 {[%clk 0:00:37.7]} 34. Rbc7 {[%clk 0:00:17.1]} 34... Qg6 {[%clk
0:00:31.4]} 35. Rxc3 {[%clk 0:00:16.8]} 35... Nxc3 {[%clk 0:00:31.7]} 36. Qb3
{[%clk 0:00:17.4]} 36... Qd3 {[%clk 0:00:31]} 37. Kh2 {[%clk 0:00:16.5]} 37...
Qd2 {[%clk 0:00:30.1]} 38. Bg3 {[%clk 0:00:11.2]} 38... a4 {[%clk 0:00:29.6]}
39. Qb4 {[%clk 0:00:11.2]} 39... Qd3 {[%clk 0:00:22.9]} 40. Re3 {[%clk
0:00:10.8]} 40... Qb1 {[%clk 0:00:21.1]} 41. Qxc3 {[%clk 0:00:10.5]} 41... Qxa2
{[%clk 0:00:21.4]} 42. Qa3 {[%clk 0:00:10.9]} 42... Qc2 {[%clk 0:00:21.1]} 43.
Rc3 {[%clk 0:00:10.8]} 43... Qd1 {[%clk 0:00:21.5]} 44. Qa2 {[%clk 0:00:10.3]}
44... Qxd4 {[%clk 0:00:20.6]} 45. Rc2 {[%clk 0:00:08.1]} 45... Ra8 {[%clk
0:00:20.5]} 46. Rd2 {[%clk 0:00:08.6]} 46... Qc4 {[%clk 0:00:19.4]} 47. Qa3
{[%clk 0:00:04.5]} 47... Qb3 {[%clk 0:00:19]} 48. Ra2 {[%clk 0:00:03.3]} 48...
Qxa3 {[%clk 0:00:18.5]} 49. Rxa3 {[%clk 0:00:04.2]} 49... d4 {[%clk 0:00:19.4]}
50. Kg1 {[%clk 0:00:04.5]} 50... d3 {[%clk 0:00:19.5]} 51. Rxd3 {[%clk
0:00:04.4]} 51... a3 {[%clk 0:00:19.4]} 52. Rd1 {[%clk 0:00:04.3]} 52... a2
{[%clk 0:00:20.1]} 53. Ra1 {[%clk 0:00:05]} 53... f5 {[%clk 0:00:20.9]} 54. Be5
{[%clk 0:00:04.9]} 54... g5 {[%clk 0:00:21.8]} 55. f4 {[%clk 0:00:05.3]} 55...
gxf4 {[%clk 0:00:21.6]} 56. Bxf4 {[%clk 0:00:05.9]} 56... h5 {[%clk 0:00:22.5]}
57. Kf2 {[%clk 0:00:06.1]} 57... Ra4 {[%clk 0:00:23.4]} 58. Kg3 {[%clk
0:00:05.9]} 58... Kf7 {[%clk 0:00:24.3]} 59. Kf3 {[%clk 0:00:05.9]} 59... h4
{[%clk 0:00:25.2]} 60. Bg5 {[%clk 0:00:05.7]} 60... Ra3+ {[%clk 0:00:25.8]} 61.
Kf2 {[%clk 0:00:06]} 61... Ra4 {[%clk 0:00:26.2]} 62. Be3 {[%clk 0:00:06.2]}
62... Kg6 {[%clk 0:00:26.3]} 63. Bd2 {[%clk 0:00:06.7]} 63... f4 {[%clk
0:00:26.7]} 64. Kf3 {[%clk 0:00:06.6]} 64... Kf5 {[%clk 0:00:27.1]} 65. Be1
{[%clk 0:00:07.3]} 65... Ra3+ {[%clk 0:00:27.5]} 66. Ke2 {[%clk 0:00:07.9]}
66... Re3+ {[%clk 0:00:24.8]} 67. Kf1 {[%clk 0:00:07.9]} 67... Ra3 {[%clk
0:00:24.7]} 68. Bxh4 {[%clk 0:00:08.3]} 68... f3 {[%clk 0:00:25.3]} 69. Bf2
{[%clk 0:00:07.4]} 69... fxg2+ {[%clk 0:00:25.1]} 70. Kxg2 {[%clk 0:00:08.3]}
70... Ke4 {[%clk 0:00:25.6]} 71. h4 {[%clk 0:00:08.4]} 71... Kd3 {[%clk
0:00:25.9]} 72. Bg3 {[%clk 0:00:07.4]} 72... Ra6 {[%clk 0:00:26.1]} 73. Be5
{[%clk 0:00:05.8]} 73... Kc2 {[%clk 0:00:26.3]} 74. Kf3 {[%clk 0:00:05.6]} 74...
Kb3 {[%clk 0:00:26.5]} 75. Rg1 {[%clk 0:00:05.3]} 75... Ra5 {[%clk 0:00:24.5]}
76. Kf4 {[%clk 0:00:05.3]} 76... Ra4+ {[%clk 0:00:24.3]} 77. Kg5 {[%clk
0:00:05.7]} 77... Re4 {[%clk 0:00:24.1]} 78. Bf6 {[%clk 0:00:05.4]} 78... Re2
{[%clk 0:00:24.3]} 79. h5 {[%clk 0:00:05.5]} 79... Kc4 {[%clk 0:00:22.2]} 80. h6
{[%clk 0:00:05.9]} 80... Rh2 {[%clk 0:00:22.6]} 81. Kg6 {[%clk 0:00:06.5]} 81...
Kd5 {[%clk 0:00:22.8]} 82. h7 {[%clk 0:00:07]} 1-0